[Event "Josef Kupper Memorial 2019"]
[Site "Zurich"]
[Date "2019.08.18"]
[Round "7.4"]
[White "Idani, Pouya"]
[Black "Bogner, Sebastian"]
[Result "1/2-1/2"]
[ECO "C42"]
[WhiteElo "2581"]
[BlackElo "2569"]
[Annotator "ChessBase"]
[PlyCount "67"]
[EventDate "2019.08.14"]
[EventType "swiss"]
[EventCountry "SUI"]
[SourceTitle "playchess.com"]
[Source "ChessBase"]
[SourceQuality "1"]
[TimeControl "40/5400+30:1800+30"]

1. e4 {[%emt 0:00:00]} e5 {[%emt 0:10:51]} 2. Nf3 {[%emt 0:02:46]} Nf6 {[%emt 0:00:05]} 3. Nxe5 {[%emt 0:00:19]} d6 {[%emt 0:00:05]} 4. Nf3 {[%emt 0:00:02]} Nxe4 {[%emt 0:00:04]} 5. Qe2 {[%emt 0:00:06]} Qe7 {[%emt 0:00:08]} 6. d3 {[%emt 0:00:05]} Nf6 {[%emt 0:00:06]} 7. Bg5 {[%emt 0:00:04]} Qxe2+ {[%emt 0:01:50]} 8. Bxe2 {[%emt 0:00:06]} Be7 {[%emt 0:00:04]} 9. Nc3 {[%emt 0:00:05]} h6 {[%emt 0:00:27]} 10. Bd2 {[%emt 0:00:05]} Nc6 {[%emt 0:03:29]} 11. Nb5 {[%emt 0:01:52]} Bd8 {[%emt 0:13:30]} 12. c4 {[%emt 0:23:18]} O-O {[%emt 0:04:42]} 13. O-O-O {[%emt 0:01:13]} Re8 {[%emt 0:06:37]} 14. Rde1 {[%emt 0:00:50]} Bd7 {[%emt 0:03:06]} 15. Bd1 {[%emt 0:04:50]} a6 {[%emt 0:11:34]} 16. Rxe8+ {[%emt 0:01:04]} Bxe8 {[%emt 0:00:26]} 17. Nbd4 {[%emt 0:04:20]} Ne7 {[%emt 0:05:21]} 18. h3 {[%emt 0:02:08]} Bd7 {[%emt 0:00:51]} 19. Re1 {[%emt 0:02:26]} Rc8 {[%emt 0:02:58]} 20. Nb3 {[%emt 0:02:32]} Ng6 {[%emt 0:04:06]} 21. d4 {[%emt 0:04:28]} c5 {[%emt 0:05:21]} 22. dxc5 {[%emt 0:05:00]} dxc5 {[%emt 0:00:12]} 23. Ne5 {[%emt 0:00:14]} Nxe5 {[%emt 0:01:21]} 24. Rxe5 {[%emt 0:00:05]} b6 {[%emt 0:00:27]} 25. Bf3 {[%emt 0:00:44]} Bc7 {[%emt 0:05:03]} 26. Re1 {[%emt 0:01:06]} Be6 {[%emt 0:04:02]} 27. Bb7 {[%emt 0:00:14]} Rb8 {[%emt 0:00:29]} 28. Bxa6 {[%emt 0:00:04]} Ra8 {[%emt 0:00:04]} 29. Bb5 {[%emt 0:00:07]} Rxa2 {[%emt 0:00:09]} 30. g4 {[%emt 0:00:13]} h5 {[%emt 0:04:21]} 31. f3 {[%emt 0:00:58]} hxg4 {[%emt 0:06:00]} 32. hxg4 {[%emt 0:00:15]} Nh7 {[%emt 0:01:48]} 33. Kc2 {[%emt 0:02:49]} Nf8 {[%emt 0:00:56]} 34. Nc1 {[%emt 0:00:59]} 1/2-1/2

[Event "Josef Kupper Memorial 2019"]
[Site "Zurich"]
[Date "2019.08.18"]
[Round "7.6"]
[White "Bauer, Christian"]
[Black "Tan, Justin"]
[Result "1-0"]
[ECO "C78"]
[WhiteElo "2626"]
[BlackElo "2503"]
[Annotator "ChessBase"]
[PlyCount "81"]
[EventDate "2019.08.14"]
[EventType "swiss"]
[EventCountry "SUI"]
[SourceTitle "playchess.com"]
[Source "ChessBase"]
[SourceQuality "1"]
[TimeControl "40/5400+30:1800+30"]

1. e4 {[%emt 0:01:20]} e5 {[%emt 0:00:20]} 2. Nf3 {[%emt 0:00:09]} Nc6 {[%emt 0:00:07]} 3. Bb5 {[%emt 0:00:06]} a6 {[%emt 0:00:06]} 4. Ba4 {[%emt 0:00:05]} Nf6 {[%emt 0:00:04]} 5. O-O {[%emt 0:00:10]} b5 {[%emt 0:00:06]} 6. Bb3 {[%emt 0:00:05]} Bb7 {[%emt 0:00:05]} 7. d3 {[%emt 0:02:16]} Be7 {[%emt 0:01:22]} 8. Nc3 {[%emt 0:03:30]} O-O {[%emt 0:02:51]} 9. Bd2 {[%emt 0:04:19]} d6 {[%emt 0:01:05]} 10. a3 {[%emt 0:06:44]} Qd7 {[%emt 0:04:23]} 11. Re1 {[%emt 0:01:15]} Nd8 {[%emt 0:06:52]} 12. Ne2 {[%emt 0:17:29]} Ne6 {[%emt 0:01:00]} 13. Ng3 {[%emt 0:00:01]} Rfe8 {[%emt 0:03:17]} 14. Nf5 {[%emt 0:02:32]} Bf8 {[%emt 0:01:46]} 15. Ba2 {[%emt 0:06:43]} c5 {[%emt 0:01:53]} 16. h3 {[%emt 0:05:51]} c4 {[%emt 0:05:49]} 17. b3 {[%emt 0:03:40]} cxd3 {[%emt 0:03:11]} 18. cxd3 {[%emt 0:00:01]} Nf4 {[%emt 0:02:05]} 19. Bxf4 {[%emt 0:02:13]} exf4 {[%emt 0:00:17]} 20. N5d4 {[%emt 0:01:40]} a5 {[%emt 0:12:25]} 21. Qd2 {[%emt 0:05:02]} d5 {[%emt 0:15:33]} 22. e5 {[%emt 0:00:26]} Nh5 {[%emt 0:00:42]} 23. b4 {[%emt 0:05:44]} axb4 {[%emt 0:00:12]} 24. axb4 {[%emt 0:00:01]} Ra4 {[%emt 0:02:15]} 25. Rab1 {[%emt 0:02:14]} Rea8 {[%emt 0:04:31]} 26. Rb2 {[%emt 0:00:19]} R8a6 {[%emt 0:08:22]} 27. Bb1 {[%emt 0:02:04]} Be7 {[%emt 0:04:16]} 28. Bc2 {[%emt 0:01:23]} Ra3 {[%emt 0:00:06]} 29. Bd1 {[%emt 0:02:20]} Rh6 {[%emt 0:01:58]} 30. Nh2 {[%emt 0:05:48]} Bc8 {[%emt 0:01:51]} 31. Bg4 {[%emt 0:04:17]} Qb7 {[%emt 0:00:25]} 32. Bxc8 {[%emt 0:09:28]} Qxc8 {[%emt 0:00:01]} 33. Rc2 {[%emt 0:00:07]} Qe8 {[%emt 0:01:27]} 34. Rec1 {[%emt 0:02:31]} Ra8 {[%emt 0:00:43]} 35. Qe2 {[%emt 0:00:48]} f3 {[%emt 0:02:19]} 36. Qxf3 {[%emt 0:00:40]} Bg5 {[%emt 0:00:02]} 37. Re1 {[%emt 0:01:01]} Bf4 {[%emt 0:05:14]} 38. Ng4 {[%emt 0:02:23]} Rg6 {[%emt 0:00:27]} 39. g3 {[%emt 0:00:33]} Qe7 {[%emt 0:00:51]} 40. gxf4 {[%emt 0:00:34]} Qxb4 {[%emt 0:00:06]} 41. Rec1 {[%emt 0:30:26]} 1-0

[Event "Josef Kupper Memorial 2019"]
[Site "Zurich"]
[Date "2019.08.18"]
[Round "7.8"]
[White "Bluebaum, Matthias"]
[Black "Zysk, Robert"]
[Result "1-0"]
[ECO "E46"]
[WhiteElo "2619"]
[BlackElo "2404"]
[Annotator "ChessBase"]
[PlyCount "49"]
[EventDate "2019.08.14"]
[EventType "swiss"]
[EventCountry "SUI"]
[SourceTitle "playchess.com"]
[Source "ChessBase"]
[SourceQuality "1"]
[TimeControl "40/5400+30:1800+30"]

1. d4 {[%emt 0:00:00]} Nf6 {[%emt 0:00:00]} 2. c4 {[%emt 0:00:08]} e6 {[%emt 0:00:00]} 3. Nc3 {[%emt 0:00:18]} Bb4 {[%emt 0:00:00]} 4. e3 {[%emt 0:00:05]} O-O {[%emt 0:05:29]} 5. Bd2 {[%emt 0:00:10]} b6 {[%emt 0:00:55]} 6. Nf3 {[%emt 0:00:37]} Bb7 {[%emt 0:00:40]} 7. Bd3 {[%emt 0:00:07]} Bxc3 {[%emt 0:00:52]} 8. Bxc3 {[%emt 0:00:07]} Ne4 {[%emt 0:00:06]} 9. Bxe4 {[%emt 0:03:22]} Bxe4 {[%emt 0:00:13]} 10. d5 {[%emt 0:00:02]} c5 {[%emt 0:05:19]} 11. Nd2 {[%emt 0:06:25]} Bg6 {[%emt 0:05:17]} 12. h4 {[%emt 0:07:34]} exd5 {[%emt 0:17:03]} 13. cxd5 {[%emt 0:03:10]} h6 {[%emt 0:07:11]} 14. Qg4 {[%emt 0:07:36]} h5 {[%emt 0:00:15]} 15. Qf3 {[%emt 0:03:21]} Qe8 {[%emt 0:04:55]} 16. g4 {[%emt 0:06:05]} f6 {[%emt 0:01:52]} 17. Rg1 {[%emt 0:02:00]} Na6 {[%emt 0:14:15]} 18. Qf4 {[%emt 0:10:38]} Kh7 {[%emt 0:02:30]} 19. gxh5 {[%emt 0:05:28]} Bxh5 {[%emt 0:00:06]} 20. a3 {[%emt 0:10:02]} Qf7 {[%emt 0:04:10]} 21. Ne4 {[%emt 0:02:35]} Qxd5 {[%emt 0:03:34]} 22. Rxg7+ {[%emt 0:09:05]} Kxg7 {[%emt 0:00:05]} 23. Nxf6 {[%emt 0:00:03]} Qh1+ {[%emt 0:20:10]} 24. Kd2 {[%emt 0:00:06]} Qg2 {[%emt 0:03:53]} 25. Ng4+ {[%emt 0:01:59]} 1-0

[Event "Josef Kupper Memorial 2019"]
[Site "Zurich"]
[Date "2019.08.18"]
[Round "7.9"]
[White "Vaibhav, Suri"]
[Black "Krishna C R G"]
[Result "1-0"]
[ECO "C18"]
[WhiteElo "2591"]
[BlackElo "2444"]
[Annotator "ChessBase"]
[PlyCount "75"]
[EventDate "2019.08.14"]
[EventType "swiss"]
[EventCountry "SUI"]
[SourceTitle "playchess.com"]
[Source "ChessBase"]
[SourceQuality "1"]
[TimeControl "40/5400+30:1800+30"]

1. e4 {[%emt 0:00:00]} e6 {[%emt 0:09:35]} 2. d4 {[%emt 0:00:20]} d5 {[%emt 0:00:05]} 3. Nc3 {[%emt 0:00:04]} Bb4 {[%emt 0:00:05]} 4. e5 {[%emt 0:00:07]} c5 {[%emt 0:00:05]} 5. a3 {[%emt 0:00:04]} Bxc3+ {[%emt 0:00:05]} 6. bxc3 {[%emt 0:00:05]} Ne7 {[%emt 0:00:04]} 7. h4 {[%emt 0:01:28]} Nbc6 {[%emt 0:00:59]} 8. h5 {[%emt 0:02:58]} h6 {[%emt 0:00:13]} 9. Qg4 {[%emt 0:02:36]} Nf5 {[%emt 0:03:12]} 10. Bd3 {[%emt 0:01:06]} O-O {[%emt 0:01:26]} 11. Ne2 {[%emt 0:02:23]} Qa5 {[%emt 0:21:38]} 12. Bd2 {[%emt 0:00:36]} Qa4 {[%emt 0:01:33]} 13. Qh3 {[%emt 0:01:30]} Nfe7 {[%emt 0:13:35]} 14. Qg3 {[%emt 0:16:33]} Kh8 {[%emt 0:00:26]} 15. dxc5 {[%emt 0:01:03]} Nf5 {[%emt 0:02:30]} 16. Qf4 {[%emt 0:01:36]} Qxf4 {[%emt 0:00:16]} 17. Bxf4 {[%emt 0:00:07]} f6 {[%emt 0:01:16]} 18. g4 {[%emt 0:15:10]} fxe5 {[%emt 0:04:58]} 19. gxf5 {[%emt 0:00:08]} exf4 {[%emt 0:00:05]} 20. Nxf4 {[%emt 0:00:08]} Ne5 {[%emt 0:01:23]} 21. Ng6+ {[%emt 0:13:49]} Nxg6 {[%emt 0:00:10]} 22. fxg6 {[%emt 0:01:51]} e5 {[%emt 0:23:41]} 23. c4 {[%emt 0:16:00]} Be6 {[%emt 0:11:07]} 24. Rh4 {[%emt 0:05:38]} Rac8 {[%emt 0:00:53]} 25. Rb1 {[%emt 0:02:16]} Rxc5 {[%emt 0:00:39]} 26. Rxb7 {[%emt 0:00:17]} dxc4 {[%emt 0:00:16]} 27. Be4 {[%emt 0:01:00]} Ra5 {[%emt 0:01:13]} 28. Re7 {[%emt 0:00:27]} Bc8 {[%emt 0:01:15]} 29. f3 {[%emt 0:07:30]} c3 {[%emt 0:01:02]} 30. Kf2 {[%emt 0:02:36]} Rxa3 {[%emt 0:00:27]} 31. Rxe5 {[%emt 0:00:12]} Bd7 {[%emt 0:00:45]} 32. Re7 {[%emt 0:01:36]} Bb5 {[%emt 0:00:14]} 33. Rc7 {[%emt 0:00:13]} Ra1 {[%emt 0:00:44]} 34. Rf4 {[%emt 0:00:43]} Rf1+ {[%emt 0:00:30]} 35. Kg3 Rd8 {[%emt 0:00:08]} 36. Rff7 {[%emt 0:01:15]} Rg1+ {[%emt 0:00:21]} 37. Kf4 {[%emt 0:00:33]} Rg8 {[%emt 0:00:06]} 38. Bd5 {[%emt 0:03:39]} 1-0

[Event "Josef Kupper Memorial 2019"]
[Site "Zurich"]
[Date "2019.08.18"]
[Round "7.10"]
[White "Harsha Bharathakoti"]
[Black "Epishin, Vladimir"]
[Result "1-0"]
[ECO "D56"]
[WhiteElo "2489"]
[BlackElo "2553"]
[Annotator "ChessBase"]
[PlyCount "79"]
[EventDate "2019.08.14"]
[EventType "swiss"]
[EventCountry "SUI"]
[SourceTitle "playchess.com"]
[Source "ChessBase"]
[SourceQuality "1"]
[TimeControl "40/5400+30:1800+30"]

1. d4 {[%emt 0:20:44]} d5 {[%emt 0:00:33]} 2. c4 {[%emt 0:00:10]} e6 {[%emt 0:00:07]} 3. Nf3 {[%emt 0:00:15]} Nf6 {[%emt 0:00:34]} 4. Bg5 {[%emt 0:01:51]} Be7 {[%emt 0:01:57]} 5. e3 {[%emt 0:00:05]} h6 {[%emt 0:02:38]} 6. Bh4 {[%emt 0:00:13]} O-O {[%emt 0:01:39]} 7. Nc3 {[%emt 0:00:44]} Ne4 {[%emt 0:01:17]} 8. Bxe7 {[%emt 0:01:13]} Qxe7 {[%emt 0:00:11]} 9. Rc1 {[%emt 0:03:39]} c6 {[%emt 0:00:45]} 10. Bd3 {[%emt 0:02:58]} Nxc3 {[%emt 0:00:50]} 11. Rxc3 {[%emt 0:00:12]} dxc4 {[%emt 0:03:27]} 12. Bxc4 {[%emt 0:04:15]} Nd7 {[%emt 0:00:04]} 13. O-O {[%emt 0:00:05]} b6 {[%emt 0:05:29]} 14. Bd3 {[%emt 0:08:19]} c5 {[%emt 0:01:48]} 15. Bb5 {[%emt 0:06:47]} Rd8 {[%emt 0:04:02]} 16. Qa4 {[%emt 0:04:46]} Bb7 {[%emt 0:25:49]} 17. Bxd7 {[%emt 0:13:08]} Bxf3 {[%emt 0:03:39]} 18. gxf3 {[%emt 0:00:30]} Rxd7 {[%emt 0:00:06]} 19. dxc5 {[%emt 0:00:03]} bxc5 {[%emt 0:00:23]} 20. Rxc5 {[%emt 0:02:57]} Qxc5 {[%emt 0:00:05]} 21. Qxd7 {[%emt 0:00:04]} Qc2 {[%emt 0:00:34]} 22. b4 {[%emt 0:10:51]} Qxa2 {[%emt 0:02:19]} 23. Rc1 {[%emt 0:00:53]} a6 {[%emt 0:13:44]} 24. Kg2 {[%emt 0:01:19]} Qd5 {[%emt 0:05:10]} 25. Rc8+ {[%emt 0:02:00]} Rxc8 {[%emt 0:00:02]} 26. Qxc8+ Kh7 27. Qxa6 {[%emt 0:00:14]} Qg5+ {[%emt 0:00:01]} 28. Kf1 {[%emt 0:01:44]} Qf5 {[%emt 0:00:02]} 29. Qe2 {[%emt 0:06:46]} Qb1+ {[%emt 0:01:35]} 30. Qe1 {[%emt 0:00:02]} Qd3+ {[%emt 0:01:17]} 31. Qe2 {[%emt 0:00:45]} Qb1+ {[%emt 0:00:03]} 32. Qe1 {[%emt 0:00:03]} Qd3+ {[%emt 0:00:34]} 33. Kg2 {[%emt 0:00:13]} e5 {[%emt 0:05:30]} 34. e4 {[%emt 0:01:37]} g5 {[%emt 0:00:06]} 35. h3 {[%emt 0:02:16]} Kg6 {[%emt 0:02:08]} 36. Qe3 {[%emt 0:00:05]} Qd7 {[%emt 0:01:04]} 37. Qc5 {[%emt 0:01:13]} f6 {[%emt 0:01:24]} 38. b5 {[%emt 0:00:10]} Kh5 {[%emt 0:00:28]} 39. Qc6 {[%emt 0:00:21]} Qd3 {[%emt 0:09:19]} 40. b6 {[%emt 0:00:19]} 1-0

[Event "Josef Kupper Memorial 2019"]
[Site "Zurich"]
[Date "2019.08.18"]
[Round "7.11"]
[White "Karthik Venkataraman"]
[Black "Theodorou, Nikolas"]
[Result "1/2-1/2"]
[ECO "E73"]
[WhiteElo "2462"]
[BlackElo "2548"]
[Annotator "ChessBase"]
[PlyCount "105"]
[EventDate "2019.08.14"]
[EventType "swiss"]
[EventCountry "SUI"]
[SourceTitle "playchess.com"]
[Source "ChessBase"]
[SourceQuality "1"]
[TimeControl "40/5400+30:1800+30"]

1. d4 {[%emt 0:18:32]} Nf6 {[%emt 0:00:00]} 2. c4 {[%emt 0:00:20]} g6 {[%emt 0:00:00]} 3. Nc3 {[%emt 0:00:04]} Bg7 {[%emt 0:00:00]} 4. e4 {[%emt 0:00:05]} d6 {[%emt 0:00:02]} 5. Be2 {[%emt 0:00:20]} O-O {[%emt 0:00:08]} 6. Bg5 {[%emt 0:00:20]} c6 {[%emt 0:01:13]} 7. Nf3 {[%emt 0:03:19]} d5 {[%emt 0:00:39]} 8. e5 {[%emt 0:00:08]} Ne4 {[%emt 0:00:02]} 9. Be3 {[%emt 0:00:05]} Nxc3 {[%emt 0:00:17]} 10. bxc3 {[%emt 0:00:04]} c5 {[%emt 0:00:02]} 11. O-O {[%emt 0:01:55]} Nc6 {[%emt 0:00:43]} 12. cxd5 {[%emt 0:07:27]} Qxd5 {[%emt 0:00:03]} 13. Qa4 {[%emt 0:00:20]} cxd4 {[%emt 0:14:53]} 14. cxd4 {[%emt 0:00:18]} Qa5 {[%emt 0:00:03]} 15. Qxa5 {[%emt 0:02:34]} Nxa5 {[%emt 0:00:03]} 16. Rfc1 {[%emt 0:00:05]} Bf5 {[%emt 0:06:48]} 17. Rc7 {[%emt 0:15:22]} Rfc8 {[%emt 0:02:25]} 18. Rac1 {[%emt 0:00:05]} Rxc7 {[%emt 0:05:46]} 19. Rxc7 {[%emt 0:00:05]} Rc8 {[%emt 0:00:03]} 20. Rxc8+ {[%emt 0:00:04]} Bxc8 {[%emt 0:00:04]} 21. d5 {[%emt 0:00:03]} b6 {[%emt 0:01:06]} 22. Bg5 {[%emt 0:12:09]} Bb7 {[%emt 0:18:20]} 23. d6 {[%emt 0:05:33]} exd6 {[%emt 0:00:03]} 24. exd6 {[%emt 0:00:03]} Bc6 {[%emt 0:00:06]} 25. Ba6 {[%emt 0:00:19]} Kf8 {[%emt 0:09:12]} 26. Be7+ {[%emt 0:19:24]} Ke8 {[%emt 0:00:02]} 27. Ne1 {[%emt 0:06:03]} Bf8 {[%emt 0:13:13]} 28. Bxf8 {[%emt 0:00:23]} Kxf8 {[%emt 0:00:02]} 29. Nd3 {[%emt 0:00:04]} f6 {[%emt 0:12:19]} 30. Nb4 {[%emt 0:00:49]} Ke8 {[%emt 0:01:56]} 31. Bc8 {[%emt 0:01:44]} Bd7 {[%emt 0:00:01]} 32. Bxd7+ {[%emt 0:00:17]} Kxd7 {[%emt 0:00:02]} 33. Nd5 {[%emt 0:00:04]} Ke6 {[%emt 0:00:44]} 34. Nc7+ {[%emt 0:01:25]} Kxd6 {[%emt 0:00:58]} 35. Nb5+ {[%emt 0:00:03]} Kc5 {[%emt 0:01:48]} 36. Nxa7 {[%emt 0:00:05]} Nc6 {[%emt 0:08:56]} 37. Nxc6 {[%emt 0:00:03]} Kxc6 {[%emt 0:00:02]} 38. Kf1 {[%emt 0:00:04]} Kc5 {[%emt 0:00:04]} 39. Ke2 {[%emt 0:00:02]} Kb4 {[%emt 0:00:09]} 40. Kd3 {[%emt 0:00:02]} Ka3 {[%emt 0:00:15]} 41. Kc4 {[%emt 0:30:02]} Kxa2 {[%emt 0:30:13]} 42. Kb5 {[%emt 0:00:01]} Kb3 {[%emt 0:00:09]} 43. Kxb6 {[%emt 0:00:03]} Kc4 {[%emt 0:00:36]} 44. Kc6 {[%emt 0:00:02]} Kd3 {[%emt 0:01:04]} 45. Kd5 {[%emt 0:00:03]} Ke2 {[%emt 0:00:00]} 46. f4 {[%emt 0:00:00]} Kf2 {[%emt 0:00:00]} 47. Ke6 {[%emt 0:00:00]} f5 {[%emt 0:00:00]} 48. g4 {[%emt 0:00:00]} fxg4 {[%emt 0:00:00]} 49. f5 {[%emt 0:00:00]} g3 {[%emt 0:00:00]} 50. hxg3 {[%emt 0:00:00]} gxf5 {[%emt 0:00:00]} 51. Kxf5 {[%emt 0:00:00]} Kxg3 {[%emt 0:00:00]} 52. Kg5 {[%emt 0:00:00]} h5 {[%emt 0:00:00]} 53. Kxh5 {[%emt 0:00:00]} 1/2-1/2

[Event "Josef Kupper Memorial 2019"]
[Site "Zurich"]
[Date "2019.08.18"]
[Round "7.12"]
[White "Hort, Vlastimil"]
[Black "Svane, Rasmus"]
[Result "1/2-1/2"]
[ECO "A40"]
[WhiteElo "2400"]
[BlackElo "2610"]
[Annotator "ChessBase"]
[PlyCount "78"]
[EventDate "2019.08.14"]
[EventType "swiss"]
[EventCountry "SUI"]
[SourceTitle "playchess.com"]
[Source "ChessBase"]
[SourceQuality "1"]
[TimeControl "40/5400+30:1800+30"]

1. c4 {[%emt 0:00:00]} b6 {[%emt 0:00:55]} 2. d4 {[%emt 0:01:16]} e6 {[%emt 0:01:50]} 3. Nf3 {[%emt 0:00:43]} Bb7 {[%emt 0:00:32]} 4. Nc3 {[%emt 0:02:10]} Bb4 {[%emt 0:04:46]} 5. Qc2 {[%emt 0:02:06]} c5 {[%emt 0:09:36]} 6. dxc5 {[%emt 0:01:19]} bxc5 {[%emt 0:01:23]} 7. a3 {[%emt 0:01:22]} Ba5 {[%emt 0:01:08]} 8. Bd2 {[%emt 0:06:14]} Nf6 {[%emt 0:02:54]} 9. e3 {[%emt 0:01:56]} O-O {[%emt 0:01:51]} 10. Be2 {[%emt 0:02:19]} d6 {[%emt 0:24:02]} 11. O-O {[%emt 0:03:16]} Nc6 {[%emt 0:05:07]} 12. Rfd1 {[%emt 0:01:01]} Qe7 {[%emt 0:06:00]} 13. Be1 {[%emt 0:08:32]} Rfd8 {[%emt 0:01:24]} 14. Rac1 {[%emt 0:02:14]} h6 {[%emt 0:02:27]} 15. Nb5 {[%emt 0:08:31]} Bxe1 {[%emt 0:03:46]} 16. Rxe1 {[%emt 0:04:35]} Rab8 {[%emt 0:00:02]} 17. Red1 {[%emt 0:00:44]} Ba8 {[%emt 0:06:30]} 18. Nd2 {[%emt 0:04:23]} Ne5 {[%emt 0:01:28]} 19. Bf1 {[%emt 0:02:11]} Rb6 {[%emt 0:02:49]} 20. Nc3 {[%emt 0:01:39]} Bc6 {[%emt 0:01:10]} 21. Re1 {[%emt 0:08:03]} Rdb8 {[%emt 0:01:40]} 22. b3 {[%emt 0:02:01]} Nfg4 {[%emt 0:07:26]} 23. h3 {[%emt 0:01:37]} Nf6 {[%emt 0:01:13]} 24. Na2 {[%emt 0:02:24]} a5 {[%emt 0:04:18]} 25. Rb1 {[%emt 0:02:55]} Qb7 {[%emt 0:00:51]} 26. Nc3 {[%emt 0:04:43]} d5 {[%emt 0:00:59]} 27. cxd5 {[%emt 0:02:26]} exd5 {[%emt 0:00:09]} 28. a4 {[%emt 0:00:12]} Ne8 {[%emt 0:01:55]} 29. Nb5 {[%emt 0:02:44]} Bxb5 {[%emt 0:01:08]} 30. axb5 {[%emt 0:00:49]} Nd6 {[%emt 0:00:58]} 31. Qxc5 {[%emt 0:00:57]} Nxb5 {[%emt 0:00:08]} 32. Rec1 {[%emt 0:01:23]} Nd7 {[%emt 0:00:27]} 33. Qe7 {[%emt 0:00:51]} Re6 {[%emt 0:00:42]} 34. Qh4 {[%emt 0:00:17]} Qb6 {[%emt 0:02:39]} 35. Qa4 {[%emt 0:01:56]} Nc5 {[%emt 0:00:30]} 36. Qxb5 {[%emt 0:04:47]} Qxb5 {[%emt 0:00:04]} 37. Bxb5 {[%emt 0:00:01]} Rxb5 {[%emt 0:00:07]} 38. Ra1 {[%emt 0:00:15]} Reb6 {[%emt 0:02:13]} 39. Ra3 {[%emt 0:01:05]} Nxb3 {[%emt 0:01:42]} 1/2-1/2

[Event "Josef Kupper Memorial 2019"]
[Site "Zurich"]
[Date "2019.08.18"]
[Round "7.13"]
[White "Puranik, Abhimanyu"]
[Black "Stysiak, Szymon"]
[Result "1-0"]
[ECO "C06"]
[WhiteElo "2550"]
[BlackElo "2162"]
[Annotator "ChessBase"]
[PlyCount "101"]
[EventDate "2019.08.14"]
[EventType "swiss"]
[EventCountry "SUI"]
[SourceTitle "playchess.com"]
[Source "ChessBase"]
[SourceQuality "1"]
[TimeControl "40/5400+30:1800+30"]

1. e4 {[%emt 0:00:00]} e6 {[%emt 0:00:00]} 2. d4 {[%emt 0:00:00]} d5 {[%emt 0:00:00]} 3. Nd2 {[%emt 0:00:00]} Nf6 {[%emt 0:00:11]} 4. e5 {[%emt 0:00:00]} Nfd7 {[%emt 0:00:05]} 5. Bd3 {[%emt 0:00:00]} c5 {[%emt 0:00:16]} 6. c3 {[%emt 0:00:00]} Nc6 {[%emt 0:00:23]} 7. Ne2 {[%emt 0:00:03]} cxd4 {[%emt 0:00:13]} 8. cxd4 {[%emt 0:00:04]} f6 {[%emt 0:00:25]} 9. exf6 {[%emt 0:00:07]} Nxf6 {[%emt 0:00:23]} 10. O-O {[%emt 0:00:08]} Bd6 {[%emt 0:00:47]} 11. Nf3 {[%emt 0:00:08]} O-O {[%emt 0:00:55]} 12. Bf4 {[%emt 0:00:11]} Qc7 {[%emt 0:04:57]} 13. Bxd6 {[%emt 0:00:15]} Qxd6 {[%emt 0:00:10]} 14. Qd2 {[%emt 0:03:55]} e5 {[%emt 0:08:15]} 15. dxe5 {[%emt 0:00:32]} Nxe5 {[%emt 0:00:10]} 16. Nxe5 {[%emt 0:00:41]} Qxe5 {[%emt 0:00:09]} 17. f3 {[%emt 0:03:26]} Bd7 {[%emt 0:06:33]} 18. Rfe1 {[%emt 0:04:15]} Rfe8 {[%emt 0:01:25]} 19. Bc2 {[%emt 0:03:44]} Qd6 {[%emt 0:04:16]} 20. Qd4 {[%emt 0:04:35]} b6 {[%emt 0:07:38]} 21. Rac1 {[%emt 0:07:52]} Rad8 {[%emt 0:07:19]} 22. Bd3 {[%emt 0:01:47]} Re7 {[%emt 0:06:29]} 23. Red1 {[%emt 0:12:02]} Kf8 {[%emt 0:01:18]} 24. a3 {[%emt 0:04:23]} Rc8 {[%emt 0:08:15]} 25. Rxc8+ {[%emt 0:02:59]} Bxc8 {[%emt 0:00:08]} 26. Rc1 {[%emt 0:00:37]} Bf5 {[%emt 0:13:33]} 27. Nf4 {[%emt 0:06:30]} Bxd3 {[%emt 0:02:34]} 28. Nxd3 {[%emt 0:00:04]} Rc7 {[%emt 0:07:00]} 29. Rc3 {[%emt 0:01:16]} Rxc3 {[%emt 0:04:55]} 30. Qxc3 {[%emt 0:00:04]} Ke7 {[%emt 0:00:39]} 31. Qd4 {[%emt 0:01:28]} Qc7 {[%emt 0:01:04]} 32. Qe3+ {[%emt 0:01:46]} Kd6 {[%emt 0:01:27]} 33. g4 {[%emt 0:03:29]} h6 {[%emt 0:01:29]} 34. Kf2 {[%emt 0:02:20]} Kc6 {[%emt 0:00:24]} 35. Kg2 {[%emt 0:03:46]} Kb5 {[%emt 0:00:06]} 36. h4 {[%emt 0:01:19]} Qc2+ {[%emt 0:00:52]} 37. Kg3 {[%emt 0:00:41]} Qc7+ {[%emt 0:01:07]} 38. Kh3 {[%emt 0:00:45]} Qc4 {[%emt 0:03:20]} 39. Ne5 {[%emt 0:04:12]} Qc2 {[%emt 0:01:05]} 40. b3 {[%emt 0:00:54]} a5 {[%emt 0:01:56]} 41. a4+ {[%emt 0:39:43]} Kb4 {[%emt 0:09:18]} 42. Qxb6+ {[%emt 0:00:00]} Ka3 {[%emt 0:00:15]} 43. Qxa5 {[%emt 0:00:00]} Qe2 {[%emt 0:03:32]} 44. Qc5+ {[%emt 0:00:00]} Ka2 {[%emt 0:06:26]} 45. Qd4 {[%emt 0:00:00]} g5 {[%emt 0:00:04]} 46. hxg5 {[%emt 0:00:00]} hxg5 {[%emt 0:00:02]} 47. Kg3 {[%emt 0:00:00]} Kxb3 {[%emt 0:00:04]} 48. Nd3 {[%emt 0:00:00]} Kc2 {[%emt 0:02:46]} 49. Nf2 {[%emt 0:00:00]} Qf1 {[%emt 0:10:38]} 50. Nh3 {[%emt 0:00:00]} Kb3 {[%emt 0:01:50]} 51. Qxf6 {[%emt 0:00:00]} 1-0